Workbook

Sheet Liste de débit
A1: Section Comiale | B1: Désignation | C1: Qt | D1: larg. | E1: Haut | F1: Long. | G1: Long. + | H1: Lg Cm | I1: Qt Lg Cm
A2: 30 x 190 | B2: Bandeau droit | C2: 4 | D2: 21 | E2: 180 | F2: 2.523 | G2: =F2+0.15 -> 2.673 | H2: 5.5 | J2: 4
B3: Bandeau gch | C3: 4 | D3: 21 | E3: 180 | F3: 2.523 | G3: =F3+0.15 -> 2.673 | H3: 5.5
C4: 4 | G4: 5.4
A6: 60 x 170 | B6: Entrait 1/2 ferme | C6: 4 | D6: 50 | E6: 160 | F6: 2.057 | G6: =F6+0.15 -> 2.207 | H6: 5 | I6: =Repart(G6,H6,C6) -> 2 | J6: 4
C7: 2 | G7: 4.4
B9: Entrait | C9: 2 | D9: 50 | E9: 160 | F9: 4.4 | G9: =F9+0.15 -> 4.55 | H9: 5 | I9: =Repart(G9,H6,C9) -> 2
A11: 70 x 90 | B11: Chevron droit | C11: 4 | D11: 60 | E11: 80 | F11: 1.546 | G11: =F11+0.1 -> 1.646 | H11: 5.5 | I11: =Repart(G11+G12+G13+G14+G15,H11,C11) -> 4 | J11: 8
B12: Empan. brisis droit | C12: 4 | D12: 60 | E12: 80 | F12: 0.607 | G12: =F12+0.1 -> 0.707
B13: Empan. court droit | C13: 4 | D13: 60 | E13: 80 | F13: 0.471 | G13: =F13+0.1 -> 0.571
B14: Empan. long droit | C14: 4 | D14: 60 | E14: 80 | F14: 1.396 | G14: =F14+0.1 -> 1.496
B15: Empan. moyen droit | C15: 4 | D15: 60 | E15: 80 | F15: 0.934 | G15: =F15+0.1 -> 1.034
C16: 4 | G16: =G11+G12+G13+G14+G15 -> 5.454
B18: Chevron gch | C18: 4 | D18: 60 | E18: 80 | F18: 1.546 | G18: =F18+0.1 -> 1.646 | H18: 5.5 | I18: =Repart(G18+G19+G20+G21+G22,H18,C18) -> 4
B19: Empan. brisis gch | C19: 4 | D19: 60 | E19: 80 | F19: 0.607 | G19: =F19+0.1 -> 0.707
B20: Empan. court gch | C20: 4 | D20: 60 | E20: 80 | F20: 0.471 | G20: =F20+0.1 -> 0.571
B21: Empan. long gch | C21: 4 | D21: 60 | E21: 80 | F21: 1.396 | G21: =F21+0.1 -> 1.496
B22: Empan. moyen gch | C22: 4 | D22: 60 | E22: 80 | F22: 0.934 | G22: =F22+0.1 -> 1.034
C23: 4 | G23: =G18+G19+G20+G21+G22 -> 5.454
A25: 100 x 190 | B25: Fourrure coyau | C25: 4 | D25: 90 | E25: 127 | F25: 2.576 | G25: =F25+0.15 -> 2.726 | H25: 5.5 | I25: =Repart(G25+G26+G27,H25,C25) -> 4 | J25: 14
B26: 1/2 panne haute | C26: 4 | D26: 80 | E26: 180 | F26: 1.255 | G26: =F26+0.15 -> 1.405
B27: Panne brisis | C27: 4 | D27: 80 | E27: 180 | F27: 1.214 | G27: =F27+0.15 -> 1.364
C28: 4 | G28: =G27+G26+G25 -> 5.495
B30: Panne porteuse | C30: 4 | D30: 80 | E30: 180 | F30: 3.259 | G30: =F30+0.15 -> 3.409 | H30: 5.5 | I30: =Repart(G30+G31,H30,C30) -> 4
B31: 1/2 panne basse | C31: 4 | D31: 80 | E31: 180 | F31: 1.985 | G31: =F31+0.15 -> 2.135
C32: 4 | G32: =G30+G31 -> 5.544
B34: Coyau | C34: 4 | D34: 90 | E34: 160 | F34: 2.093 | G34: =F34+0.15 -> 2.243 | H34: 5.5 | I34: =Repart(G34+G35,H34,C34) -> 4
B35: Arbalétrier | C35: 4 | D35: 90 | E35: 180 | F35: 2.729 | G35: =F35+0.15 -> 2.879
C36: 4 | G36: =G34+G35 -> 5.122
B38: Fourrure arba | C38: 4 | D38: 90 | E38: 145 | F38: 1.34 | G38: =F38+0.15 -> 1.49 | H38: 5.5 | I38: =Repart(G38+G39,H38,C38) -> 2
B39: Contrefiche | C39: 4 | D39: 70 | E39: 120 | F39: 0.794 | G39: =F39+0.15 -> 0.944
C40: 4 | G40: =G39+G38 -> 2.434
A42: 170 x 170 | B42: Poinçon | C42: 1 | D42: 160 | E42: 160 | F42: 1.342 | G42: =F42+0.15 -> 1.492 | H42: 3 | J42: 1
A44: 210 x 210 | B44: Poteau | C44: 4 | D44: 200 | E44: 200 | F44: 2.698 | G44: =F44+0.15 -> 2.848 | H44: 3 | J44: 4
B46: Semelle | C46: 2 | D46: 50 | E46: 160 | F46: 0.4 | G46: =F46+0.15 -> 0.55 | H46: 3 | J46: 1

Sheet Devis
A1: Désignation | B1: section | D1: Lg | E1: Qt. | F1: Vol. | G1: P.U HT | H1: Montant HT
B2: Hauteur | C2: Largeur
B3: [mm] | C3: [mm] | D3: [m] | E3: [u] | F3: [m3] | G3: [€/m3] | H3: [€]
A4: Douglas | B4: 30 | C4: 190 | D4: 5.5 | E4: 4 | F4: =E4*D4*C4*B4/1000000 -> 0.1254 | G4: 580 | H4: =G4*F4 -> 72.732
A5: Douglas | B5: 60 | C5: 170 | D5: 5 | E5: 4 | F5: =E5*D5*C5*B5/1000000 -> 0.204 | G5: 580 | H5: =G5*F5 -> 118.32
A6: Douglas | B6: 70 | C6: 90 | D6: 5.5 | E6: 8 | F6: =E6*D6*C6*B6/1000000 -> 0.2772 | G6: 580 | H6: =G6*F6 -> 160.776
A7: Douglas | B7: 100 | C7: 190 | D7: 5.5 | E7: 14 | F7: =E7*D7*C7*B7/1000000 -> 1.463 | G7: 550 | H7: =G7*F7 -> 804.65
A8: Douglas | B8: 170 | C8: 170 | D8: 3 | E8: 1 | F8: =E8*D8*C8*B8/1000000 -> 0.0867 | G8: 550 | H8: =G8*F8 -> 47.685
A9: Douglas | B9: 210 | C9: 210 | D9: 3 | E9: 4 | F9: =E9*D9*C9*B9/1000000 -> 0.5292 | G9: 550 | H9: =G9*F9 -> 291.06
A11: Transport | E11: 1 | H11: 100
A13: Bois de charpente, brut de sciage, vive arête
G15: Volume total [m3] | H15: =F8+F9+F7+F5+F4+F6 -> 2.6855
G16: Total H.T. | H16: =H8+H9+H7+H5+H4+H6 -> 1495.223
G17: Total T.V.A. | H17: =H16*0.196 -> 293.063708
G18: Net à payer | H18: =H16+H17 -> 1788.286708
